{"text_format":"1","workbook":"xlsx","n_sheets":3,"sheets":["Feuil1","Feuil2","Feuil3"],"not_rendered":{"charts":0,"images":0,"macros":1,"external_links":0,"defined_names":0,"comments":0,"pivot_tables":0},"unopened":[],"bounds":{"document_bytes":16777216,"sheet_cells":100000,"rows_first":2000,"rows_last":500,"rows_between":2000,"halvings":0,"cell_chars":16384,"cell_head_chars":4096},"cells_cut":0,"cells_raw":0,"read":"whole","date_system":"1900"}

{"sheet":"Feuil1","index":0,"n_rows":28,"n_cols":26,"rows_kept":28,"cut":false,"hidden":false,"merged":[[0,5,1,7]]}
["SECTEUR",null,null,"INVENTAIRE 2013",null,"INVENTAIRE 2013",null,null,null,null,null,"DATE"]
["EQUIPE",null,null,null,null,null,null,null,null,null,null,null,null,null,null,null,null,0.1,null,null,0.2,null,null,0.3]
["EQUIPEMENT","CODE \nEQUIPEMENT \nTECHNICENTRE","DESCRIPTION","TECHNICENTRE","SITE","FAMILLE I/O","STATUT","COMMENTAIRES","Etat \nSAMI général","BATIMENT\n G.M.A.O.","BATIMENT\n REEL","UNITE\n-\nEQUIPE DE\nPRODUCTION\nG.M.A.O.","UNITE\n-\nEQUIPE DE\nPRODUCTION\nREEL","UNITE\n-\nEQUIPE \nMAINTENANCE I/O","Prochaine visite","lien complet","vérif","PHOTO\nPLAQUE\n S.N.C.F.","lien complet","vérif","PHOTO\nPLAQUE\nCONSTRUCTEUR\n","lien complet","vérif","PHOTO\nPLAN \nLARGE"]
["118922","GOC 6029 LMS","BANC D'ESSAIS","OM","OM","BSDIV","En Service","Perdu , non trouvé","ACCP","",null,"",null,"",null,{"$f":"IF($K4=\"\",\"\",HYPERLINK(CONCATENATE(\"G:\\commun\\10-P_Gef\\Modifiable\\02 - Inventaire\\2013_Inventaire\\Inventaire_2013_PHOTOS\\photos\\\",$A4+R$2,\".jpg\")))","v":""},{"$f":"IF(P4<>\"\",ExisteFichier(P4),\"\")","v":""},{"$f":"IF($K4=\"\",\"\",HYPERLINK(CONCATENATE(\"G:\\commun\\10-P_Gef\\Modifiable\\02 - Inventaire\\2013_Inventaire\\Inventaire_2013_PHOTOS\\photos\\\",$A4+R$2,\".jpg\"),$A4+R$2))","v":""},{"$f":"IF($K4=\"\",\"\",HYPERLINK(CONCATENATE(\"G:\\commun\\10-P_Gef\\Modifiable\\02 - Inventaire\\2013_Inventaire\\Inventaire_2013_PHOTOS\\photos\\\",$A4+U$2,\".jpg\")))","v":""},{"$f":"IF(S4<>\"\",ExisteFichier(S4),\"\")","v":""},{"$f":"IF($K4=\"\",\"\",HYPERLINK(CONCATENATE(\"G:\\commun\\10-P_Gef\\Modifiable\\02 - Inventaire\\2013_Inventaire\\Inventaire_2013_PHOTOS\\photos\\\",$A4+U$2,\".jpg\"),$A4+U$2))","v":""},{"$f":"IF($K4=\"\",\"\",HYPERLINK(CONCATENATE(\"G:\\commun\\10-P_Gef\\Modifiable\\02 - Inventaire\\2013_Inventaire\\Inventaire_2013_PHOTOS\\photos\\\",$A4+X$2,\".jpg\")))","v":""},{"$f":"IF(V4<>\"\",ExisteFichier(V4),\"\")","v":""},{"$f":"IF($K4=\"\",\"\",HYPERLINK(CONCATENATE(\"G:\\commun\\10-P_Gef\\Modifiable\\02 - Inventaire\\2013_Inventaire\\Inventaire_2013_PHOTOS\\photos\\\",$A4+X$2,\".jpg\"),$A4+X$2))","v":""}]
["119084","ETUVE 40018","ETUVE","OM","OM","ETUVE","En Service","Perdu, non trouvé","ACCP","",null,"",null,"",null,{"$f":"IF($K5=\"\",\"\",HYPERLINK(CONCATENATE(\"G:\\commun\\10-P_Gef\\Modifiable\\02 - Inventaire\\2013_Inventaire\\Inventaire_2013_PHOTOS\\photos\\\",$A5+R$2,\".jpg\")))","v":""},{"$f":"IF(P5<>\"\",ExisteFichier(P5),\"\")","v":""},{"$f":"IF($K5=\"\",\"\",HYPERLINK(CONCATENATE(\"G:\\commun\\10-P_Gef\\Modifiable\\02 - Inventaire\\2013_Inventaire\\Inventaire_2013_PHOTOS\\photos\\\",$A5+R$2,\".jpg\"),$A5+R$2))","v":""},{"$f":"IF($K5=\"\",\"\",HYPERLINK(CONCATENATE(\"G:\\commun\\10-P_Gef\\Modifiable\\02 - Inventaire\\2013_Inventaire\\Inventaire_2013_PHOTOS\\photos\\\",$A5+U$2,\".jpg\")))","v":""},{"$f":"IF(S5<>\"\",ExisteFichier(S5),\"\")","v":""},"",{"$f":"IF($K5=\"\",\"\",HYPERLINK(CONCATENATE(\"G:\\commun\\10-P_Gef\\Modifiable\\02 - Inventaire\\2013_Inventaire\\Inventaire_2013_PHOTOS\\photos\\\",$A5+X$2,\".jpg\")))","v":""},{"$f":"IF(V5<>\"\",ExisteFichier(V5),\"\")","v":""},""]
["143141","MACHINE À LAVER LES MOTEURS ","Machine à laver les moteurs ","OM","OM","MALMR","En Service","Perdu , non trouvé","ACCP","",null,"",null,"",null,"","","","","","","","",""]
["16570","TBO-0028","TOURS ET MACHINES A BOBINER (TBO)","OM","OM","TORBO","En Service","Retiré du service","ACCP","",null,"",null,"",null,"","","","","","","","",""]
["19949","TBO-19949","TOURS ET MACHINES A BOBINER (TBO)","OM","OM","TORBO","En Service","Perdu, non trouvé","ACCP","",null,"",null,"","2014-10-02","","","","","","","","",""]
["174146","PSBPA-174146","POSTE A BRASER;PSBPA-174146","OM","OM","MCHBR","En Service","Pas utlisé mais fonctionne / maintenance faite en août 2013","MOYE","OM-BAT-00","OM-BAT-04","OM-41000","OM-42041","OL-DU-PREV-CUR",null,"G:\\commun\\10-P_Gef\\Modifiable\\02 - Inventaire\\2013_Inventaire\\Inventaire_2013_PHOTOS\\photos\\174146,1.jpg",false,174146.1,"G:\\commun\\10-P_Gef\\Modifiable\\02 - Inventaire\\2013_Inventaire\\Inventaire_2013_PHOTOS\\photos\\174146,2.jpg",false,174146.2,"G:\\commun\\10-P_Gef\\Modifiable\\02 - Inventaire\\2013_Inventaire\\Inventaire_2013_PHOTOS\\photos\\174146,3.jpg",false,{"$f":"IF($K9=\"\",\"\",HYPERLINK(CONCATENATE(\"G:\\commun\\10-P_Gef\\Modifiable\\02 - Inventaire\\2013_Inventaire\\Inventaire_2013_PHOTOS\\photos\\\",$A9+X$2,\".jpg\"),$A9+X$2))","v":174146.3}]
["18975","PSBPA-RB02","BRASEUSE POUR INDUITS;PSBPA-RB02","OM","OM","MCHBR","En Service","Retiré du service","ACCP","OM-BAT-00","OM-BAT-00","OM-42000","OM-42023","OL-DU-PREV-CUR",null,"G:\\commun\\10-P_Gef\\Modifiable\\02 - Inventaire\\2013_Inventaire\\Inventaire_2013_PHOTOS\\photos\\18975,1.jpg",false,18975.099999999999,"G:\\commun\\10-P_Gef\\Modifiable\\02 - Inventaire\\2013_Inventaire\\Inventaire_2013_PHOTOS\\photos\\18975,2.jpg",false,18975.2,"G:\\commun\\10-P_Gef\\Modifiable\\02 - Inventaire\\2013_Inventaire\\Inventaire_2013_PHOTOS\\photos\\18975,3.jpg",false,18975.3]
["18508","ASPIR-18508","ASPIRATION DEGUIPEUSE BÂT-00;ASPIR-18508","OM","OM","ASPIR","En Service","En service/IDEM ASPIR RB02","ACCP","OM-BAT-00","OM-BAT-00","OM-42023","OM-42023","OL-DU-PREV-CUR",null,"G:\\commun\\10-P_Gef\\Modifiable\\02 - Inventaire\\2013_Inventaire\\Inventaire_2013_PHOTOS\\photos\\18508,1.jpg",false,18508.099999999999,"G:\\commun\\10-P_Gef\\Modifiable\\02 - Inventaire\\2013_Inventaire\\Inventaire_2013_PHOTOS\\photos\\18508,2.jpg",false,18508.2,"G:\\commun\\10-P_Gef\\Modifiable\\02 - Inventaire\\2013_Inventaire\\Inventaire_2013_PHOTOS\\photos\\18508,3.jpg",false,18508.3]
["18509","ASPIR-18509","ASPIRATION TOUR BÂT-00;ASPIR-18509","OM","OM","ASPIR","En Service","En service","ACCP","OM-BAT-00","OM-BAT-00","OM-42023","OM-42023","OL-DU-PREV-CUR","2014-10-02","G:\\commun\\10-P_Gef\\Modifiable\\02 - Inventaire\\2013_Inventaire\\Inventaire_2013_PHOTOS\\photos\\18509,1.jpg",false,18509.099999999999,"G:\\commun\\10-P_Gef\\Modifiable\\02 - Inventaire\\2013_Inventaire\\Inventaire_2013_PHOTOS\\photos\\18509,2.jpg",false,18509.2,"G:\\commun\\10-P_Gef\\Modifiable\\02 - Inventaire\\2013_Inventaire\\Inventaire_2013_PHOTOS\\photos\\18509,3.jpg",false,18509.3]
["18756","ASPIR-RB02","ASPIRATION DÉGUIPEUSE BAIN ÉTAIN;ASPIR-RB02","OM","OM","ASPIR","En Service","En service / IDEM ASPIR 18508","ACCP","OM-BAT-00","OM-BAT-00","OM-42023","OM-42023","OL-DU-PREV-CUR",41914,"G:\\commun\\10-P_Gef\\Modifiable\\02 - Inventaire\\2013_Inventaire\\Inventaire_2013_PHOTOS\\photos\\18756,1.jpg",false,18756.099999999999,"G:\\commun\\10-P_Gef\\Modifiable\\02 - Inventaire\\2013_Inventaire\\Inventaire_2013_PHOTOS\\photos\\18756,2.jpg",false,18756.2,"G:\\commun\\10-P_Gef\\Modifiable\\02 - Inventaire\\2013_Inventaire\\Inventaire_2013_PHOTOS\\photos\\18756,3.jpg",false,18756.3]
["241234","BETAM-241234","Bain d'étain;BETAM-241234","OM","OM","BETAM","En Service","Retiré du service","ACCP","OM-BAT-00","OM-BAT-00","OM-42023","OM-42023","OL-DU-PREV-CUR",null,"G:\\commun\\10-P_Gef\\Modifiable\\02 - Inventaire\\2013_Inventaire\\Inventaire_2013_PHOTOS\\photos\\241234,1.jpg",false,241234.1,"G:\\commun\\10-P_Gef\\Modifiable\\02 - Inventaire\\2013_Inventaire\\Inventaire_2013_PHOTOS\\photos\\241234,2.jpg",false,241234.2,"G:\\commun\\10-P_Gef\\Modifiable\\02 - Inventaire\\2013_Inventaire\\Inventaire_2013_PHOTOS\\photos\\241234,3.jpg",false,241234.3,null,{"$f":"ExisteFichier(R14)","v":false}]
["5948","MED-0093","BATI A MEULER DOUBLE;MED-0093","OM","OM","BT2ML","En Service","En service","ACCP","OM-BAT-00","OM-BAT-00","OM-42023","OM-42023","OL-DU-PREV-CUR",41415,"G:\\commun\\10-P_Gef\\Modifiable\\02 - Inventaire\\2013_Inventaire\\Inventaire_2013_PHOTOS\\photos\\5948,1.jpg",false,5948.1,"G:\\commun\\10-P_Gef\\Modifiable\\02 - Inventaire\\2013_Inventaire\\Inventaire_2013_PHOTOS\\photos\\5948,2.jpg",false,5948.2,"G:\\commun\\10-P_Gef\\Modifiable\\02 - Inventaire\\2013_Inventaire\\Inventaire_2013_PHOTOS\\photos\\5948,3.jpg",false,5948.3]
["5950","MED-0102","BATI A MEULER DOUBLE;MED-0102","OM","OM","BT2ML","En Service","En service","ACCP","OM-BAT-00","OM-BAT-00","OM-42023","OM-42023","OL-DU-PREV-CUR","2013-05-21","G:\\commun\\10-P_Gef\\Modifiable\\02 - Inventaire\\2013_Inventaire\\Inventaire_2013_PHOTOS\\photos\\5950,1.jpg",false,5950.1,"G:\\commun\\10-P_Gef\\Modifiable\\02 - Inventaire\\2013_Inventaire\\Inventaire_2013_PHOTOS\\photos\\5950,2.jpg",false,5950.2,"G:\\commun\\10-P_Gef\\Modifiable\\02 - Inventaire\\2013_Inventaire\\Inventaire_2013_PHOTOS\\photos\\5950,3.jpg",false,5950.3]
["4140","DECAB-0129","PETITE INSTALLATION DE DECAPAGE AU JET D'ABRASIF;DECAB-0129","OM","OM","DECAB","En Service","En service","ACCP","OM-BAT-00","OM-BAT-00","OM-42023","OM-42023","OL-DU-PREV-CUR",41909,"G:\\commun\\10-P_Gef\\Modifiable\\02 - Inventaire\\2013_Inventaire\\Inventaire_2013_PHOTOS\\photos\\4140,1.jpg",false,4140.1000000000004,"G:\\commun\\10-P_Gef\\Modifiable\\02 - Inventaire\\2013_Inventaire\\Inventaire_2013_PHOTOS\\photos\\4140,2.jpg",false,4140.2,"G:\\commun\\10-P_Gef\\Modifiable\\02 - Inventaire\\2013_Inventaire\\Inventaire_2013_PHOTOS\\photos\\4140,3.jpg",false,4140.3]
["4143","DECAB-0232","PETITE INSTALLATION DE DECAPAGE AU JET D'ABRASIF;DECAB-0232","OM","OM","DECAB","En Service","En service","ACCP","OM-BAT-00","OM-BAT-00","OM-42023","OM-42023","OL-DU-PREV-CUR","2014-10-02","G:\\commun\\10-P_Gef\\Modifiable\\02 - Inventaire\\2013_Inventaire\\Inventaire_2013_PHOTOS\\photos\\4143,1.jpg",false,4143.1000000000004,"G:\\commun\\10-P_Gef\\Modifiable\\02 - Inventaire\\2013_Inventaire\\Inventaire_2013_PHOTOS\\photos\\4143,2.jpg",false,4143.2,"G:\\commun\\10-P_Gef\\Modifiable\\02 - Inventaire\\2013_Inventaire\\Inventaire_2013_PHOTOS\\photos\\4143,3.jpg",false,4143.3]
["140957","ETUVE-140957","ETUVE VENTILEE;ETUVE-140957","OM","OM","ETUVE","En Service","En service","ACCP","OM-BAT-00","OM-BAT-00","OM-42023","OM-42023","OL-DU-PREV-CUR",null,"G:\\commun\\10-P_Gef\\Modifiable\\02 - Inventaire\\2013_Inventaire\\Inventaire_2013_PHOTOS\\photos\\140957,1.jpg",false,140957.1,"G:\\commun\\10-P_Gef\\Modifiable\\02 - Inventaire\\2013_Inventaire\\Inventaire_2013_PHOTOS\\photos\\140957,2.jpg",false,140957.20000000001,"G:\\commun\\10-P_Gef\\Modifiable\\02 - Inventaire\\2013_Inventaire\\Inventaire_2013_PHOTOS\\photos\\140957,3.jpg",false,140957.29999999999]
["188300","GRFRO-188300","GROUPE FROID STAND IMPREGNATION;GRFRO-188300","OM","OM","GRFRO","En Service","En service","ACCP","OM-BAT-00","OM-BAT-00","OM-42023","OM-42025","OL-DU-PREV-CUR",null,"G:\\commun\\10-P_Gef\\Modifiable\\02 - Inventaire\\2013_Inventaire\\Inventaire_2013_PHOTOS\\photos\\188300,1.jpg",false,188300.1,"G:\\commun\\10-P_Gef\\Modifiable\\02 - Inventaire\\2013_Inventaire\\Inventaire_2013_PHOTOS\\photos\\188300,2.jpg",false,188300.2,"G:\\commun\\10-P_Gef\\Modifiable\\02 - Inventaire\\2013_Inventaire\\Inventaire_2013_PHOTOS\\photos\\188300,3.jpg",false,188300.3]
["4381","EQ-0053","MACHINES A EQUILIBRER;EQ-0053","OM","OM","MCHEQ","En Service","En service","ACCP","OM-BAT-00","OM-BAT-00","OM-42023","OM-42023","OL-DU-PREV-CUR",41914,"G:\\commun\\10-P_Gef\\Modifiable\\02 - Inventaire\\2013_Inventaire\\Inventaire_2013_PHOTOS\\photos\\4381,1.jpg",false,4381.1000000000004,"G:\\commun\\10-P_Gef\\Modifiable\\02 - Inventaire\\2013_Inventaire\\Inventaire_2013_PHOTOS\\photos\\4381,2.jpg",false,4381.2,"G:\\commun\\10-P_Gef\\Modifiable\\02 - Inventaire\\2013_Inventaire\\Inventaire_2013_PHOTOS\\photos\\4381,3.jpg",false,4381.3]
["4559","FM-0068","FRAISEUSES POUR LE MICA DES COLLECTEURS;FM-0068","OM","OM","MCHFR","En Service","En service","ACCP","OM-BAT-00","OM-BAT-00","OM-42023","OM-42023","OL-DU-PREV-CUR",null,"G:\\commun\\10-P_Gef\\Modifiable\\02 - Inventaire\\2013_Inventaire\\Inventaire_2013_PHOTOS\\photos\\4559,1.jpg",false,4559.1000000000004,"G:\\commun\\10-P_Gef\\Modifiable\\02 - Inventaire\\2013_Inventaire\\Inventaire_2013_PHOTOS\\photos\\4559,2.jpg",false,4559.2,"G:\\commun\\10-P_Gef\\Modifiable\\02 - Inventaire\\2013_Inventaire\\Inventaire_2013_PHOTOS\\photos\\4559,3.jpg",false,4559.3]
["4562","FM-0083","FRAISEUSES POUR LE MICA DES COLLECTEURS;FM-0083","OM","OM","MCHFR","En Service","En service","ACCP","OM-BAT-00","OM-BAT-00","OM-42023","OM-42023","OL-DU-PREV-CUR",41914,"G:\\commun\\10-P_Gef\\Modifiable\\02 - Inventaire\\2013_Inventaire\\Inventaire_2013_PHOTOS\\photos\\4562,1.jpg",false,4562.1000000000004,"G:\\commun\\10-P_Gef\\Modifiable\\02 - Inventaire\\2013_Inventaire\\Inventaire_2013_PHOTOS\\photos\\4562,2.jpg",false,4562.2,"G:\\commun\\10-P_Gef\\Modifiable\\02 - Inventaire\\2013_Inventaire\\Inventaire_2013_PHOTOS\\photos\\4562,3.jpg",false,4562.3]
["18506","PE-18506","PERCEUSE D'ETABLI;PE-18506","OM","OM","MCHPE","En Service","En service","ACCP","OM-BAT-00","OM-BAT-00","OM-42023","OM-42023","OL-DU-PREV-CUR","2014-10-02","G:\\commun\\10-P_Gef\\Modifiable\\02 - Inventaire\\2013_Inventaire\\Inventaire_2013_PHOTOS\\photos\\18506,1.jpg",false,18506.099999999999,"G:\\commun\\10-P_Gef\\Modifiable\\02 - Inventaire\\2013_Inventaire\\Inventaire_2013_PHOTOS\\photos\\18506,2.jpg",false,18506.2,"G:\\commun\\10-P_Gef\\Modifiable\\02 - Inventaire\\2013_Inventaire\\Inventaire_2013_PHOTOS\\photos\\18506,3.jpg",false,18506.3]
["18918","POL-RB01","DÉGUIPEUSE MANUELLE;POL-RB01","OM","OM","MCHPO","En Service","En service ( completé par liste)","ACCP","OM-BAT-00","OM-BAT-00","OM-42023","OM-42023","OL-DU-PREV-CUR",null,"G:\\commun\\10-P_Gef\\Modifiable\\02 - Inventaire\\2013_Inventaire\\Inventaire_2013_PHOTOS\\photos\\18918,1.jpg",false,18918.099999999999,"G:\\commun\\10-P_Gef\\Modifiable\\02 - Inventaire\\2013_Inventaire\\Inventaire_2013_PHOTOS\\photos\\18918,2.jpg",false,18918.2,"G:\\commun\\10-P_Gef\\Modifiable\\02 - Inventaire\\2013_Inventaire\\Inventaire_2013_PHOTOS\\photos\\18918,3.jpg",false,18918.3]
["18919","POL-RB02","POLISSEUSE BAIN D'ÉTAIN;POL-RB02","OM","OM","MCHPO","En Service","En service ( completé par liste)","ACCP","OM-BAT-00","OM-BAT-00","OM-42023","OM-42023","OL-DU-PREV-CUR",null,"G:\\commun\\10-P_Gef\\Modifiable\\02 - Inventaire\\2013_Inventaire\\Inventaire_2013_PHOTOS\\photos\\18919,1.jpg",false,18919.099999999999,"G:\\commun\\10-P_Gef\\Modifiable\\02 - Inventaire\\2013_Inventaire\\Inventaire_2013_PHOTOS\\photos\\18919,2.jpg",false,18919.2,"G:\\commun\\10-P_Gef\\Modifiable\\02 - Inventaire\\2013_Inventaire\\Inventaire_2013_PHOTOS\\photos\\18919,3.jpg",false,18919.3]
["216727","PMPHY-216727","PRESSE HYDRAULIQUE;PMPHY-216727","OM","OM","PRESS-VR","En Service","En service","ACCP","OM-BAT-00","OM-BAT-00","OM-42023","OM-42023","OL-DU-PREV-CUR",41606,"G:\\commun\\10-P_Gef\\Modifiable\\02 - Inventaire\\2013_Inventaire\\Inventaire_2013_PHOTOS\\photos\\216727,1.jpg",false,{"$f":"IF($K27=\"\",\"\",HYPERLINK(CONCATENATE(\"G:\\commun\\10-P_Gef\\Modifiable\\02 - Inventaire\\2013_Inventaire\\Inventaire_2013_PHOTOS\\photos\\\",$A27+R$2,\".jpg\"),$A27+R$2))","v":216727.1},"G:\\commun\\10-P_Gef\\Modifiable\\02 - Inventaire\\2013_Inventaire\\Inventaire_2013_PHOTOS\\photos\\216727,2.jpg",false,216727.2,"G:\\commun\\10-P_Gef\\Modifiable\\02 - Inventaire\\2013_Inventaire\\Inventaire_2013_PHOTOS\\photos\\216727,3.jpg",false,216727.3]
["12513","PRH-0362","PRESSES HYDRAULIQUES;PRH-0362","OM","OM","PRESS-VR","En Service","En service","ACCP","OM-BAT-00","OM-BAT-00","OM-42023","OM-42023","OL-DU-PREV-CUR","2013-11-28","G:\\commun\\10-P_Gef\\Modifiable\\02 - Inventaire\\2013_Inventaire\\Inventaire_2013_PHOTOS\\photos\\12513,1.jpg",false,12513.1,"G:\\commun\\10-P_Gef\\Modifiable\\02 - Inventaire\\2013_Inventaire\\Inventaire_2013_PHOTOS\\photos\\12513,2.jpg",false,12513.2,"G:\\commun\\10-P_Gef\\Modifiable\\02 - Inventaire\\2013_Inventaire\\Inventaire_2013_PHOTOS\\photos\\12513,3.jpg",false,12513.3]

{"sheet":"Feuil2","index":1,"n_rows":0,"n_cols":0,"rows_kept":0,"cut":false,"hidden":false,"merged":[]}

{"sheet":"Feuil3","index":2,"n_rows":0,"n_cols":0,"rows_kept":0,"cut":false,"hidden":false,"merged":[]}